bitfinex/quotes_BTCUSD_20240918
["timestamp","ask_amount","ask_price","bid_price","bid_amount"]
[1726657851311,0.16305367,59961.0,59960.0,0.0055665]
[1726657851551,0.17611742,59961.0,59960.0,0.0055665]
[1726657851766,0.01306375,59961.0,59960.0,0.0055665]
[1726657851990,0.03922528,59961.0,59960.0,0.0055665]
[1726657852210,0.02616153,59961.0,59960.0,0.0055665]
[1726657852444,0.03153407,59961.0,59960.0,0.0055665]
[1726657852667,0.04016153,59961.0,59960.0,0.0055665]
[1726657853114,0.02616153,59961.0,59960.0,0.0055665]
[1726657853336,0.03216153,59961.0,59960.0,0.0055665]
[1726657855955,0.006,59961.0,59960.0,0.0055665]
[1726657861791,0.006,59961.0,59960.0,0.26435509]
[1726657862259,0.0261602,59973.0,59961.0,0.0973]
[1726657862503,0.0261602,59973.0,59972.0,0.10108081]
[1726657863856,0.0381602,59973.0,59972.0,0.10108081]
[1726657864072,0.012,59973.0,59969.0,0.15399341]
[1726657865277,0.000821,59979.0,59969.0,0.15399341]
[1726657865721,0.011,59973.0,59969.0,0.15399341]
[1726657866406,0.000821,59979.0,59969.0,0.15399341]
[1726657866849,0.014821,59979.0,59969.0,0.15399341]
[1726657867070,0.000821,59979.0,59969.0,0.15399341]
[1726657867756,0.000821,59979.0,59973.0,0.15399341]
[1726657868418,0.00533201,59978.0,59973.0,0.15399341]
[1726657868645,0.011,59973.0,59965.0,0.15399341]
[1726657868863,0.16838568,59978.0,59965.0,0.15399341]
[1726657869076,0.0053655,59972.0,59965.0,0.15399341]
[1726657869293,0.16305367,59978.0,59965.0,0.15399341]
[1726657869520,0.00537108,59971.0,59965.0,0.15399341]
[1726657869729,0.16305367,59978.0,59965.0,0.15399341]
[1726657869996,0.011,59973.0,59965.0,0.15399341]
[1726657870210,0.16305367,59978.0,59965.0,0.15399341]
[1726657870211,0.0053655,59972.0,59965.0,0.15399341]
[1726657870429,0.0153655,59972.0,59965.0,0.15399341]
[1726657870654,0.00537108,59971.0,59965.0,0.15399341]
[1726657871086,0.01,59972.0,59965.0,0.15399341]
[1726657871523,0.00537108,59971.0,59965.0,0.15399341]
[1726657871964,0.01,59972.0,59965.0,0.15399341]
[1726657872399,0.00537108,59971.0,59965.0,0.15399341]
[1726657872621,0.0261569,59974.0,59965.0,0.15399341]
[1726657872847,0.00535992,59973.0,59965.0,0.15399341]
[1726657873493,0.01,59972.0,59965.0,0.15399341]
[1726657873963,0.00538625,59971.0,59965.0,0.15399341]
[1726657874397,0.0261569,59974.0,59965.0,0.15399341]
[1726657874828,0.00537509,59973.0,59965.0,0.15399341]
[1726657875079,0.00991888,59973.0,59965.0,0.15399341]
[1726657875954,0.00991888,59973.0,59969.0,0.15399341]
[1726657876414,0.02091888,59973.0,59969.0,0.15399341]
[1726657876643,0.0231045,59972.0,59969.0,0.15399341]
[1726657877102,0.0231045,59972.0,59970.0,0.0927]
[1726657877331,0.0231045,59972.0,59970.0,0.09603472]
[1726657877543,0.011,59973.0,59970.0,0.09603472]
[1726657877807,0.011,59973.0,59972.0,0.15399341]
[1726657878943,0.000821,59976.0,59972.0,0.15399341]
[1726657879841,0.011,59973.0,59972.0,0.15399341]
[1726657880078,0.000821,59976.0,59972.0,0.15399341]
[1726657880547,0.014821,59976.0,59972.0,0.15399341]
[1726657880779,0.014821,59976.0,59962.0,0.00533454]
[1726657880780,0.000821,59976.0,59964.0,0.095]
[1726657881010,0.000821,59976.0,59969.0,0.15399341]
[1726657881457,0.000821,59976.0,59965.0,0.16305367]
[1726657881458,0.096121,59976.0,59966.0,0.1]
[1726657881949,0.02319158,59975.0,59966.0,0.1]
[1726657882167,0.011,59973.0,59966.0,0.1]
[1726657882395,0.011,59973.0,59960.0,0.0055665]
[1726657882667,0.02319158,59975.0,59971.0,0.15399341]
[1726657882896,0.009821,59976.0,59967.0,0.15399341]
[1726657883121,0.02319159,59974.0,59967.0,0.15399341]
[1726657883343,0.01319729,59974.0,59967.0,0.15399341]
[1726657883563,0.000821,59976.0,59967.0,0.15399341]
[1726657883564,0.006,59973.0,59967.0,0.15399341]
[1726657884021,0.000821,59976.0,59967.0,0.15399341]
[1726657884267,0.01320287,59975.0,59967.0,0.15399341]
[1726657886842,0.02120287,59975.0,59967.0,0.15399341]
[1726657887065,0.01320287,59975.0,59967.0,0.15399341]
[1726657887287,0.02120287,59975.0,59967.0,0.15399341]
[1726657888175,0.02120287,59975.0,59972.0,0.10105848]
[1726657888834,0.01320287,59975.0,59972.0,0.10105848]
[1726657889311,0.02120287,59975.0,59972.0,0.10105848]
[1726657889748,0.01320287,59975.0,59972.0,0.10105848]
[1726657890196,0.01720287,59975.0,59972.0,0.10105848]
[1726657890425,0.01320287,59975.0,59972.0,0.10105848]
[1726657890869,0.01720287,59975.0,59972.0,0.10105848]
[1726657892279,0.01320287,59975.0,59972.0,0.10105848]
[1726657892727,0.01720287,59975.0,59972.0,0.10105848]
[1726657893175,0.01720287,59975.0,59969.0,0.10105848]
[1726657893619,0.0911,59974.0,59969.0,0.10105848]
[1726657893835,0.01319171,59973.0,59969.0,0.10105848]
[1726657894299,0.01319171,59973.0,59966.0,0.10105848]
[1726657894971,0.01319171,59973.0,59960.0,0.1055665]
[1726657894972,0.01319171,59973.0,59969.0,0.10105848]
[1726657896375,0.16305367,59972.0,59960.0,0.0055665]
[1726657896599,0.16305367,59972.0,59960.0,0.10662498]
[1726657896813,0.01311623,59971.0,59963.0,0.10105848]
[1726657897049,0.16305367,59970.0,59966.0,0.10105848]
[1726657897265,0.01310507,59969.0,59966.0,0.10105848]
[1726657897941,0.1699,59974.0,59966.0,0.10105848]
[1726657898165,0.01309948,59968.0,59966.0,0.10105848]
[1726657898396,0.01006286,59973.0,59966.0,0.10105848]
[1726657898609,0.01006286,59973.0,59965.0,0.001642]
[1726657898856,0.01006286,59973.0,59966.0,0.10105848]
[1726657899528,0.007,59972.0,59966.0,0.10105848]
[1726657899744,0.01006286,59973.0,59966.0,0.10105848]
[1726657900205,0.01806286,59973.0,59966.0,0.10105848]
[1726657900896,0.01006286,59973.0,59966.0,0.10105848]
[1726657901335,0.01806286,59973.0,59966.0,0.10105848]
[1726657901557,0.01312182,59972.0,59966.0,0.10105848]
[1726657901827,0.01312182,59972.0,59969.0,0.10105848]
[1726657902945,0.02012182,59972.0,59969.0,0.10105848]
[1726657903448,0.01312182,59972.0,59969.0,0.10105848]
[1726657903665,0.01612182,59972.0,59969.0,0.10105848]
[1726657903880,0.01312182,59972.0,59969.0,0.10105848]
[1726657904324,0.01612182,59972.0,59969.0,0.10105848]
[1726657910851,0.01312182,59972.0,59969.0,0.10105848]
[1726657911523,0.01312182,59972.0,59970.0,0.00333479]
[1726657911747,0.01312182,59972.0,59971.0,0.0948]
[1726657912208,0.000821,59976.0,59971.0,0.0948]
[1726657912451,0.000821,59976.0,59975.0,0.10105848]
[1726657918489,0.000821,59976.0,59974.0,0.10105848]
[1726657918712,0.000821,59976.0,59969.0,0.001642]
[1726657918713,0.0954,59975.0,59969.0,0.001642]
[1726657919162,0.02316368,59974.0,59969.0,0.001642]
[1726657920753,0.02716368,59974.0,59969.0,0.001642]
[1726657921440,0.02716368,59974.0,59971.0,0.10105848]
[1726657923011,0.02316368,59974.0,59971.0,0.10105848]
[1726657923232,0.02716368,59974.0,59971.0,0.10105848]
[1726657923687,0.02316368,59974.0,59971.0,0.10105848]
[1726657924126,0.02416368,59974.0,59971.0,0.10105848]
[1726657924348,0.02316368,59974.0,59971.0,0.10105848]
[1726657930322,0.02416368,59974.0,59971.0,0.10105848]
[1726657938077,0.0986,59973.0,59971.0,0.10105848]
[1726657938269,0.0986,59973.0,59969.0,0.001642]
[1726657938524,0.02319257,59972.0,59969.0,0.001642]
[1726657939224,0.02319257,59972.0,59971.0,0.10105848]
[1726657945157,0.000821,59976.0,59971.0,0.10105848]
[1726657945391,0.000821,59976.0,59975.0,0.10105848]
[1726657946776,0.000821,59976.0,59972.0,0.10105848]
[1726657947956,0.001821,59976.0,59972.0,0.10105848]
[1726657948175,0.000821,59976.0,59972.0,0.10105848]
[1726657948616,0.005821,59976.0,59972.0,0.10105848]
[1726657948835,0.000821,59976.0,59972.0,0.10105848]
[1726657949031,0.01320287,59975.0,59972.0,0.10105848]
[1726657949588,0.01320287,59975.0,59972.0,0.13053458]
[1726657952170,0.01720287,59975.0,59972.0,0.13053458]
[1726657952628,0.01320287,59975.0,59972.0,0.13053458]
[1726657954661,0.01720287,59975.0,59972.0,0.13053458]
[1726657954885,0.01320287,59975.0,59972.0,0.13053458]
[1726657955345,0.01720287,59975.0,59972.0,0.13053458]
[1726657958144,0.0099865,59974.0,59972.0,0.13053458]
[1726657958331,0.02318379,59974.0,59972.0,0.13053458]
[1726657959606,0.02618379,59974.0,59972.0,0.13053458]
[1726657962468,0.02618379,59974.0,59972.0,0.0294761]
[1726657962688,0.0924,59973.0,59972.0,0.0294761]
[1726657963157,0.10559171,59973.0,59972.0,0.0294761]
[1726657963431,0.34674538,59973.0,59972.0,0.0294761]
[1726657964126,0.34674538,59973.0,59972.0,0.0311181]
[1726657964352,0.39502397,59973.0,59972.0,0.0311181]
[1726657964586,0.39502045,59973.0,59972.0,0.0311181]
[1726657964812,0.39602045,59973.0,59972.0,0.0311181]
[1726657965040,0.053,59972.0,59971.0,0.001642]
[1726657965264,0.053,59972.0,59970.0,0.0020071]
[1726657965265,0.153,59971.0,59970.0,0.0020071]
[1726657965484,0.46242874,59971.0,59970.0,0.0020071]
[1726657965734,0.47555337,59971.0,59970.0,0.0020071]
[1726657967073,0.50171451,59971.0,59970.0,0.0020071]
[1726657967511,0.45343944,59971.0,59970.0,0.0020071]
[1726657968379,0.46743944,59971.0,59970.0,0.0020071]
[1726657968598,0.59240113,59971.0,59970.0,0.0020071]
[1726657968812,0.57840113,59971.0,59970.0,0.0020071]
[1726657969033,0.59240113,59971.0,59970.0,0.0020071]
[1726657969245,0.4775153,59971.0,59970.0,0.0020071]
[1726657969459,0.57745876,59971.0,59970.0,0.0020071]
[1726657969915,0.56345876,59971.0,59970.0,0.0020071]
[1726657970131,0.56345853,59971.0,59970.0,0.0020071]
[1726657970578,0.4635153,59971.0,59970.0,0.0020071]
[1726657971080,0.54202892,59971.0,59970.0,0.0020071]
[1726657971299,0.55602892,59971.0,59970.0,0.0020071]
[1726657971518,0.55244698,59971.0,59970.0,0.0020071]
[1726657971945,0.53844698,59971.0,59970.0,0.0020071]
[1726657973046,0.55243691,59971.0,59970.0,0.0020071]
[1726657973257,0.56218389,59971.0,59970.0,0.0020071]
[1726657974190,0.53602275,59971.0,59970.0,0.0020071]
[1726657974409,0.52202275,59971.0,59970.0,0.0020071]
[1726657974651,0.44710114,59971.0,59970.0,0.0020071]
[1726657974871,0.46110114,59971.0,59970.0,0.0020071]
[1726657975088,0.44710114,59971.0,59970.0,0.0020071]
[1726657975511,0.46110114,59971.0,59970.0,0.0020071]
[1726657975696,0.44710114,59971.0,59970.0,0.0020071]
[1726657976114,0.46110114,59971.0,59970.0,0.0020071]
[1726657976357,0.44710114,59971.0,59970.0,0.0020071]
[1726657976575,0.4970278,59971.0,59970.0,0.0020071]
[1726657976995,0.59808628,59971.0,59970.0,0.0028281]
[1726657977429,0.62424726,59971.0,59970.0,0.0028281]
[1726657977886,0.62424216,59971.0,59970.0,0.0028281]
[1726657978606,0.61208118,59971.0,59970.0,0.0028281]
[1726657978825,0.59808118,59971.0,59970.0,0.0028281]
[1726657979050,0.61208118,59971.0,59970.0,0.0028281]
[1726657979489,0.59808118,59971.0,59970.0,0.0028281]
[1726657979701,0.56215962,59971.0,59970.0,0.0028281]
[1726657979949,0.66200275,59971.0,59970.0,0.0028281]
[1726657980173,0.80069342,59971.0,59970.0,0.0028281]
[1726657980396,0.71485029,59971.0,59970.0,0.0028281]
[1726657980609,0.62215962,59971.0,59970.0,0.0028281]
[1726657981048,0.74696353,59971.0,59970.0,0.0028281]
[1726657981937,0.63432269,59971.0,59970.0,0.0028281]
[1726657982151,0.74814645,59971.0,59970.0,0.0028281]
[1726657982617,0.70918572,59971.0,59970.0,0.0028281]
[1726657982829,0.72318572,59971.0,59970.0,0.0028281]
[1726657983269,0.70918572,59971.0,59970.0,0.0028281]
[1726657983490,0.56212724,59971.0,59970.0,0.0028281]
[1726657983939,0.47326421,59971.0,59970.0,0.0028281]
[1726657984168,0.52316546,59971.0,59970.0,0.0028281]
[1726657984632,0.58316546,59971.0,59970.0,0.0028281]
[1726657984872,0.73926943,59971.0,59970.0,0.0028281]
[1726657985103,0.63944567,59971.0,59970.0,0.0028281]
[1726657985351,0.75526943,59971.0,59970.0,0.0028281]
[1726657985564,0.75523935,59971.0,59970.0,0.0028281]
[1726657985781,0.65544567,59971.0,59970.0,0.0028281]
[1726657985995,0.78024958,59971.0,59970.0,0.0028281]
[1726657986259,0.74008651,59971.0,59970.0,0.0028281]
[1726657986473,0.75408651,59971.0,59970.0,0.0028281]
[1726657986687,0.74008651,59971.0,59970.0,0.0028281]
[1726657987217,0.75408651,59971.0,59970.0,0.0028281]
[1726657987431,0.67554351,59971.0,59970.0,0.0028281]
[1726657987874,0.67754351,59971.0,59970.0,0.0028281]
[1726657989004,0.67754351,59971.0,59970.0,0.0015737]
[1726657989005,0.66354351,59971.0,59970.0,0.0015737]
[1726657989220,0.68970582,59971.0,59970.0,0.0015737]
[1726657989440,0.70370582,59971.0,59970.0,0.0015737]
[1726657989868,0.70534782,59971.0,59970.0,0.0015737]
[1726657990099,0.96264782,59971.0,59970.0,0.0015737]
[1726657990324,2.04844782,59971.0,59970.0,0.0015737]
[1726657990991,2.1475063,59971.0,59970.0,0.0015737]
[1726657991208,2.1495063,59971.0,59970.0,0.0015737]
[1726657992294,2.1355063,59971.0,59970.0,0.0015737]
[1726657992993,0.8879063,59971.0,59970.0,0.0015737]
[1726657993257,0.8739063,59971.0,59970.0,0.0015737]
[1726657993486,0.8879063,59971.0,59970.0,0.0015737]
[1726657993700,0.8739063,59971.0,59970.0,0.0015737]
[1726657994185,0.8879063,59971.0,59970.0,0.0015737]
[1726657995392,0.8739063,59971.0,59970.0,0.0015737]
[1726657995800,0.8879063,59971.0,59970.0,0.0015737]
[1726657996003,0.8739063,59971.0,59970.0,0.0015737]
[1726657996257,0.84774399,59971.0,59970.0,0.0015737]
[1726657996459,0.86174399,59971.0,59970.0,0.0015737]
[1726657996700,0.84774399,59971.0,59970.0,0.0015737]
[1726657997054,0.86174399,59971.0,59970.0,0.0015737]
[1726657997466,0.97241501,59971.0,59970.0,0.0015737]
[1726657997748,0.84774399,59971.0,59970.0,0.0015737]
[1726657999455,0.86174399,59971.0,59970.0,0.0015737]
[1726657999846,0.84774399,59971.0,59970.0,0.0015737]
[1726658000079,1.03754399,59971.0,59970.0,0.0015737]
[1726658000282,0.86174399,59971.0,59970.0,0.0015737]
[1726658000800,0.88790779,59971.0,59970.0,0.0015737]
[1726658001021,0.87390779,59971.0,59970.0,0.0015737]
[1726658001236,0.88790779,59971.0,59970.0,0.0015737]
[1726658002787,0.87390779,59971.0,59970.0,0.0015737]
[1726658002999,0.88790779,59971.0,59970.0,0.0015737]
[1726658003413,0.87390779,59971.0,59970.0,0.0015737]
[1726658003623,0.65566785,59971.0,59970.0,0.0015737]
[1726658003843,0.73056253,59971.0,59970.0,0.0015737]
[1726658004088,0.71656253,59971.0,59970.0,0.0015737]
[1726658004270,0.73056253,59971.0,59970.0,0.0015737]
[1726658004704,0.71656253,59971.0,59970.0,0.0015737]
[1726658004911,0.90264811,59971.0,59970.0,0.0015737]
[1726658005326,1.0524128,59971.0,59970.0,0.0015737]
[1726658006169,1.0664128,59971.0,59970.0,0.0015737]
[1726658006379,1.0524128,59971.0,59970.0,0.0015737]
[1726658006592,0.90264811,59971.0,59970.0,0.0015737]
[1726658006800,0.91664811,59971.0,59970.0,0.0015737]
[1726658007007,0.94281134,59971.0,59970.0,0.0015737]
[1726658007434,0.95681134,59971.0,59970.0,0.0015737]
[1726658008350,0.92881134,59971.0,59970.0,0.0015737]
[1726658008581,0.76572576,59971.0,59970.0,0.0015737]
[1726658008804,0.76772576,59971.0,59970.0,0.0015737]
[1726658009699,0.78172576,59971.0,59970.0,0.0015737]
[1726658009919,0.78162576,59971.0,59970.0,0.0015737]
[1726658010124,0.76762576,59971.0,59970.0,0.0015737]
[1726658010337,0.87523686,59971.0,59970.0,0.0015737]
[1726658010772,0.86123686,59971.0,59970.0,0.0015737]
[1726658011183,0.87523686,59971.0,59970.0,0.0015737]
[1726658013838,2.11067363,59971.0,59970.0,0.0015737]
[1726658014503,2.27915891,59971.0,59970.0,0.0015737]
[1726658016974,2.30532234,59971.0,59970.0,0.0015737]
[1726658017200,2.13683706,59971.0,59970.0,0.0015737]
[1726658018089,2.11067363,59971.0,59970.0,0.0015737]
[1726658018520,2.09667363,59971.0,59970.0,0.0015737]
[1726658018732,2.11067363,59971.0,59970.0,0.0015737]
[1726658020683,2.09667363,59971.0,59970.0,0.0015737]
[1726658021111,2.13683771,59971.0,59970.0,0.0015737]
[1726658021961,2.12283771,59971.0,59970.0,0.0015737]
[1726658022169,2.13683771,59971.0,59970.0,0.0015737]
[1726658022612,2.12283771,59971.0,59970.0,0.0015737]
[1726658023981,2.09667363,59971.0,59970.0,0.0015737]
[1726658024207,2.00761515,59971.0,59970.0,0.0015737]
[1726658024449,2.02717363,59971.0,59970.0,0.0015737]
[1726658025355,2.01317363,59971.0,59970.0,0.0015737]
[1726658025577,1.91507363,59971.0,59970.0,0.0015737]
[1726658025794,0.66747363,59971.0,59970.0,0.0015737]
[1726658026265,0.54386253,59971.0,59970.0,0.0015737]
[1726658027130,0.55602523,59971.0,59970.0,0.0015737]
[1726658027585,0.57002523,59971.0,59970.0,0.0015737]
[1726658027793,0.55602523,59971.0,59970.0,0.0015737]
[1726658028231,0.57002523,59971.0,59970.0,0.0015737]
[1726658029125,0.60002523,59971.0,59970.0,0.0015737]
[1726658030711,0.60202523,59971.0,59970.0,0.0015737]
[1726658031620,0.60002523,59971.0,59970.0,0.0015737]
[1726658032997,0.66022775,59971.0,59970.0,0.0015737]
[1726658033906,0.63406505,59971.0,59970.0,0.0015737]
[1726658036885,0.73056505,59971.0,59970.0,0.0015737]
[1726658037343,0.75672919,59971.0,59970.0,0.0015737]
[1726658039768,0.75472919,59971.0,59970.0,0.0015737]
[1726658039982,0.69452667,59971.0,59970.0,0.0015737]
[1726658040647,0.60002667,59971.0,59970.0,0.0015737]
[1726658041774,0.49896819,59971.0,59970.0,0.0015737]
[1726658041992,0.60002667,59971.0,59970.0,0.0015737]
[1726658043316,0.60002667,59971.0,59970.0,0.0942737]
[1726658043317,0.4363178,59971.0,59970.0,0.0942737]
[1726658043616,0.1348446,59971.0,59970.0,0.0942737]
[1726658043825,0.000821,59976.0,59970.0,0.0942737]
[1726658043826,0.000821,59976.0,59974.0,0.0995]
[1726658046894,0.011821,59976.0,59974.0,0.1005]
[1726658049532,0.16305367,59975.0,59974.0,0.1005]
[1726658049750,0.16305367,59975.0,59974.0,0.001]
[1726658049984,0.1793966,59975.0,59974.0,0.001]
[1726658050864,0.1793966,59975.0,59971.0,0.0833]
[1726658051786,0.1803966,59975.0,59974.0,0.001]
[1726658052021,0.20655372,59975.0,59974.0,0.001]
[1726658054297,0.20555372,59975.0,59971.0,0.0833]
[1726658054486,0.21555372,59975.0,59971.0,0.0843]
[1726658054948,0.20555372,59975.0,59971.0,0.0833]
[1726658055176,0.21555372,59975.0,59974.0,0.001]
[1726658055625,0.20555372,59975.0,59971.0,0.0833]
[1726658055846,0.21555372,59975.0,59971.0,0.0843]
[1726658056277,0.21555372,59975.0,59971.0,0.0833]
[1726658056278,0.1793966,59975.0,59971.0,0.0833]
[1726658057630,0.1893966,59975.0,59974.0,0.001]
[1726658058146,0.1793966,59975.0,59971.0,0.0833]
[1726658058366,0.1893966,59975.0,59971.0,0.0843]
[1726658058583,0.1793966,59975.0,59971.0,0.0833]
[1726658059048,0.1893966,59975.0,59974.0,0.001]
[1726658059259,0.1893966,59975.0,59971.0,0.0833]
[1726658059260,0.1793966,59975.0,59971.0,0.0833]
[1726658059477,0.1893966,59975.0,59971.0,0.0843]
[1726658060580,0.1910386,59975.0,59971.0,0.0843]
[1726658062115,0.1910386,59975.0,59971.0,0.001]
[1726658063460,0.21719584,59975.0,59971.0,0.001]
[1726658063928,0.1910386,59975.0,59971.0,0.001]
[1726658067177,0.21719617,59975.0,59971.0,0.001]
[1726658069963,0.1910386,59975.0,59971.0,0.001]
[1726658072452,0.20117126,59975.0,59971.0,0.001]
[1726658072887,0.20117126,59975.0,59971.0,0.001821]
[1726658073291,0.22732888,59975.0,59971.0,0.001821]
[1726658074018,0.20117126,59975.0,59971.0,0.001821]
[1726658076947,0.22732888,59975.0,59971.0,0.001821]
[1726658077387,0.21719622,59975.0,59971.0,0.001821]
[1726658079138,0.1910386,59975.0,59971.0,0.001821]
[1726658082501,0.21719609,59975.0,59971.0,0.001821]
[1726658086347,0.1910386,59975.0,59971.0,0.001821]
[1726658089519,0.24101431,59975.0,59971.0,0.001821]
[1726658089748,0.26717175,59975.0,59971.0,0.001821]
[1726658089970,0.1910386,59975.0,59971.0,0.001821]
[1726658090625,0.24101431,59975.0,59971.0,0.001821]
[1726658092544,0.04997571,59974.0,59971.0,0.001821]
[1726658092754,0.16305367,59973.0,59971.0,0.001821]
[1726658092958,0.1791856,59973.0,59971.0,0.001821]
[1726658093372,0.20534314,59973.0,59971.0,0.001821]
[1726658093577,0.25531885,59973.0,59971.0,0.001821]
[1726658093785,0.20534314,59973.0,59971.0,0.001821]
[1726658094033,0.1791856,59973.0,59971.0,0.000821]
[1726658094267,0.1871856,59973.0,59971.0,0.001821]
[1726658095390,0.23726775,59973.0,59971.0,0.001821]
[1726658095585,0.1871856,59973.0,59971.0,0.001821]
[1726658097155,0.21334316,59973.0,59971.0,0.001821]
[1726658098248,0.1871856,59973.0,59971.0,0.001821]
[1726658099343,0.23726775,59973.0,59971.0,0.001821]
[1726658100706,0.1871856,59973.0,59972.0,0.10108534]
[1726658100928,0.02413193,59973.0,59972.0,0.10118534]
[1726658101597,0.001642,59975.0,59974.0,0.0001]
[1726658102252,0.001642,59975.0,59974.0,0.00343432]
[1726658103356,0.001642,59975.0,59974.0,0.0001]
[1726658104491,0.001642,59975.0,59974.0,0.0101]
[1726658104492,0.002642,59975.0,59974.0,0.0101]
[1726658104714,0.002642,59975.0,59974.0,0.0921]
[1726658105393,0.001642,59975.0,59974.0,0.0841]
[1726658105612,0.001642,59975.0,59974.0,0.0951]
[1726658105613,0.002642,59975.0,59974.0,0.0951]
[1726658106873,0.002642,59975.0,59974.0,0.0931]
[1726658117820,0.002642,59975.0,59974.0,0.09643401]
[1726658119619,0.002642,59975.0,59974.0,0.09843401]
[1726658119961,0.002642,59975.0,59974.0,0.26148768]
[1726658124010,0.002642,59975.0,59974.0,0.25815367]
[1726658127522,0.002642,59975.0,59974.0,0.38807444]
[1726658129305,0.001642,59975.0,59974.0,0.37707444]
[1726658129511,0.002642,59975.0,59974.0,0.38907444]
[1726658130201,0.002642,59975.0,59974.0,0.40911508]
[1726658131352,0.002642,59975.0,59974.0,0.38907444]
[1726658132691,0.002642,59975.0,59974.0,0.37707444]
[1726658132692,0.001642,59975.0,59974.0,0.37707444]
[1726658133134,0.001642,59975.0,59974.0,0.39007444]
[1726658133135,0.002642,59975.0,59974.0,0.39007444]
[1726658133617,0.002642,59975.0,59974.0,0.43963856]
[1726658133821,0.002642,59975.0,59974.0,0.36015367]
[1726658134047,0.001642,59975.0,59974.0,0.37707444]
[1726658134501,0.001642,59975.0,59974.0,0.42665363]
[1726658134770,0.001642,59975.0,59974.0,0.37707444]
[1726658134985,0.001642,59975.0,59974.0,0.42665362]
[1726658135415,0.001642,59975.0,59974.0,0.37707444]
[1726658135846,0.001642,59975.0,59974.0,0.42665444]
[1726658136091,0.002642,59975.0,59974.0,0.43965444]
[1726658136302,0.001642,59975.0,59974.0,0.52096076]
[1726658136508,0.001642,59975.0,59974.0,0.52096082]
[1726658136746,0.002642,59975.0,59974.0,0.53396082]
[1726658136953,0.001642,59975.0,59974.0,0.52096082]
[1726658137598,0.001642,59975.0,59974.0,0.47137444]
[1726658137817,0.002642,59975.0,59974.0,0.53497777]
[1726658138237,0.002642,59975.0,59974.0,0.48537444]
[1726658139340,0.002642,59975.0,59974.0,0.55974444]
[1726658140192,0.002642,59975.0,59974.0,0.58974444]
[1726658140406,0.4676,59988.0,59978.0,0.002]
[1726658140613,0.4676,59988.0,59978.0,0.36947275]
[1726658141048,0.4676,59988.0,59978.0,0.36747275]
[1726658141281,0.4676,59988.0,59978.0,0.36413901]
[1726658142118,0.4676,59988.0,59978.0,0.36613901]
[1726658142338,0.0919,59985.0,59978.0,0.36413901]
[1726658143412,0.001821,59979.0,59978.0,0.37413901]
[1726658144686,0.000821,59979.0,59978.0,0.36413901]
[1726658145146,0.000821,59979.0,59978.0,0.37513901]
[1726658145147,0.001821,59979.0,59978.0,0.37513901]
[1726658145351,0.001821,59979.0,59978.0,0.42476514]
[1726658146485,0.000821,59979.0,59978.0,0.41376514]
[1726658146694,0.001821,59979.0,59978.0,0.42376514]
[1726658147109,0.000821,59979.0,59978.0,0.41376514]
[1726658147949,0.001821,59979.0,59978.0,0.42476514]
[1726658148359,0.001821,59979.0,59978.0,0.41376514]
[1726658148360,0.000821,59979.0,59978.0,0.41376514]
[1726658148581,0.000821,59979.0,59978.0,0.36413901]
[1726658149225,0.000821,59979.0,59978.0,0.41387848]
[1726658149432,0.000821,59979.0,59978.0,0.41388213]
[1726658150118,0.000821,59979.0,59978.0,0.41588213]
[1726658150354,0.000821,59979.0,59978.0,0.36613901]
[1726658150561,0.001821,59979.0,59978.0,0.37613901]
[1726658151281,0.000821,59979.0,59978.0,0.41589471]
[1726658151507,0.001821,59979.0,59978.0,0.42689471]
[1726658151950,0.001821,59979.0,59978.0,0.42689466]
[1726658152179,0.001821,59979.0,59978.0,0.37713901]
[1726658152640,0.001821,59979.0,59978.0,0.37523901]
[1726658152861,0.001821,59979.0,59978.0,0.42499537]
[1726658155070,0.001821,59979.0,59978.0,0.42499904]
[1726658155303,0.001821,59979.0,59978.0,0.42499903]
[1726658156145,0.001821,59979.0,59978.0,0.37523901]
[1726658157162,0.001821,59979.0,59978.0,0.42499903]
[1726658158942,0.001821,59979.0,59978.0,0.37523901]
[1726658160314,0.093121,59979.0,59978.0,0.16193775]
[1726658160813,0.10963374,59979.0,59978.0,0.11218534]
[1726658161051,0.093121,59979.0,59978.0,0.16193775]
[1726658161320,0.10963374,59979.0,59978.0,0.06085241]
[1726658161590,0.10963374,59979.0,59978.0,0.0111]
[1726658162480,0.10963374,59979.0,59978.0,0.0001]
[1726658162481,0.10863374,59979.0,59978.0,0.0001]
[1726658162708,0.19173374,59979.0,59978.0,0.003]
[1726658163151,0.19173374,59979.0,59974.0,0.0001]
[1726658163152,0.0956,59978.0,59974.0,0.0001]
[1726658163376,0.25865367,59978.0,59973.0,0.0001]
[1726658163597,0.0986,59977.0,59973.0,0.0001]
[1726658164395,0.16305367,59978.0,59973.0,0.0001]
[1726658164396,0.0986,59975.0,59973.0,0.0001]
[1726658165145,0.01645246,59974.0,59973.0,0.0001]
[1726658165374,0.10925246,59974.0,59973.0,0.0001]
[1726658166571,0.10925246,59974.0,59973.0,0.0031]
[1726658166791,0.10925246,59974.0,59973.0,0.0001]
[1726658168824,0.11025246,59974.0,59973.0,0.0001]
[1726658169274,0.10925246,59974.0,59973.0,0.0001]
[1726658169536,0.10925246,59974.0,59973.0,0.0031]
[1726658169777,0.10925246,59974.0,59973.0,0.0001]
[1726658172196,0.10925246,59974.0,59973.0,0.001742]
[1726658172310,0.11425246,59974.0,59973.0,0.001742]
[1726658175309,0.11425246,59974.0,59973.0,0.10282734]
[1726658175531,0.10925246,59974.0,59973.0,0.10282734]
[1726658175753,0.11125246,59974.0,59973.0,0.10282734]
[1726658176200,0.10925246,59974.0,59973.0,0.10282734]
[1726658176423,0.10925246,59974.0,59973.0,0.10382734]
[1726658176846,0.10925246,59974.0,59973.0,0.002742]
[1726658177069,0.10925246,59974.0,59973.0,0.002642]
[1726658178460,0.10925246,59974.0,59973.0,0.001642]
[1726658178693,0.10925246,59974.0,59973.0,0.001742]
[1726658179346,0.11225246,59974.0,59973.0,0.001742]
[1726658179779,0.10925246,59974.0,59973.0,0.001742]
[1726658180019,0.11225246,59974.0,59973.0,0.001742]
[1726658180865,0.11225246,59974.0,59973.0,0.001642]
[1726658181768,0.10925246,59974.0,59973.0,0.001642]
[1726658181981,0.10925246,59974.0,59973.0,0.001742]
[1726658182199,0.11225246,59974.0,59973.0,0.001742]
[1726658182433,0.11225246,59974.0,59973.0,0.001642]
[1726658182642,0.11225246,59974.0,59973.0,0.001742]
[1726658182856,0.10925246,59974.0,59973.0,0.001742]
[1726658183285,0.11225246,59974.0,59973.0,0.001742]
[1726658183499,0.11225246,59974.0,59973.0,0.001642]
[1726658186065,0.10925246,59974.0,59973.0,0.001642]
[1726658186500,0.11125246,59974.0,59973.0,0.001642]
[1726658194096,0.11125246,59974.0,59973.0,0.001742]
[1726658195737,0.10925246,59974.0,59973.0,0.001742]